bitfinex/quotes_BTCUSD_20250108
["timestamp","ask_amount","ask_price","bid_price","bid_amount"]
[1736317027055,0.39260535,96649.0,96648.0,0.08143175]
[1736317027450,0.28400235,96649.0,96648.0,0.08143175]
[1736317027621,1.31545135,96649.0,96648.0,0.08143175]
[1736317027825,1.05690435,96649.0,96648.0,0.08143175]
[1736317028024,1.05790435,96649.0,96648.0,0.08143175]
[1736317028324,1.05790435,96649.0,96648.0,0.00013175]
[1736317028325,1.19145023,96649.0,96648.0,0.00013175]
[1736317028527,1.19045023,96649.0,96648.0,0.00013175]
[1736317028758,1.20106512,96649.0,96648.0,0.00013175]
[1736317028957,1.20135075,96649.0,96638.0,8.53e-05]
[1736317029188,0.61188697,96644.0,96638.0,8.53e-05]
[1736317029412,3.02475838,96644.0,96638.0,8.53e-05]
[1736317029621,4.55731295,96644.0,96638.0,8.53e-05]
[1736317029797,0.74417495,96644.0,96638.0,8.53e-05]
[1736317030059,4.55731295,96644.0,96638.0,8.53e-05]
[1736317030235,4.44699995,96644.0,96638.0,8.53e-05]
[1736317030443,0.28451147,96640.0,96638.0,8.53e-05]
[1736317030641,0.28451147,96640.0,96603.0,0.06548853]
[1736317030642,0.28451147,96626.0,96619.0,0.0791]
[1736317030872,0.38354588,96626.0,96625.0,0.00023798]
[1736317031155,3.68838542,96626.0,96625.0,0.00023798]
[1736317031287,3.57583742,96626.0,96625.0,0.00023798]
[1736317031987,3.61073794,96626.0,96625.0,0.00023798]
[1736317032639,3.89624413,96626.0,96625.0,9.8e-07]
[1736317032811,1.32083213,96626.0,96625.0,9.8e-07]
[1736317033698,1.33123031,96626.0,96625.0,9.8e-07]
[1736317034668,1.33223031,96626.0,96625.0,9.8e-07]
[1736317034864,1.33123031,96626.0,96625.0,9.8e-07]
[1736317035068,1.43026472,96626.0,96625.0,9.8e-07]
[1736317035268,1.43126472,96626.0,96625.0,9.8e-07]
[1736317035475,1.43026472,96626.0,96625.0,9.8e-07]
[1736317035880,1.43126472,96626.0,96625.0,9.8e-07]
[1736317036195,1.33026472,96626.0,96625.0,9.8e-07]
[1736317036625,1.33126472,96626.0,96625.0,9.8e-07]
[1736317037374,1.33223031,96626.0,96625.0,9.8e-07]
[1736317037799,1.19771884,96626.0,96625.0,9.8e-07]
[1736317038000,1.33123031,96626.0,96625.0,9.8e-07]
[1736317038213,1.19671884,96626.0,96625.0,9.8e-07]
[1736317038418,1.10772539,96626.0,96625.0,0.04640098]
[1736317038626,1.30085239,96626.0,96625.0,0.04640098]
[1736317038842,1.10672539,96626.0,96625.0,0.04640098]
[1736317039063,1.28549439,96626.0,96625.0,0.12560098]
[1736317039267,1.25772539,96626.0,96625.0,0.12560098]
[1736317039475,1.43549439,96626.0,96625.0,0.12560098]
[1736317039682,1.43449439,96626.0,96625.0,0.12560098]
[1736317040280,1.31287798,96626.0,96625.0,0.12560098]
[1736317040480,0.3273755,96626.0,96625.0,0.29034744]
[1736317040710,0.3273755,96626.0,96625.0,0.26990572]
[1736317040913,0.3273755,96626.0,96625.0,0.27832439]
[1736317041683,0.3273755,96626.0,96625.0,0.21283586]
[1736317041884,0.4483905,96626.0,96625.0,0.13401965]
[1736317042173,0.79645932,96626.0,96625.0,0.13401965]
[1736317042324,0.83645277,96626.0,96625.0,0.08761965]
[1736317042522,0.84708451,96626.0,96625.0,9.8e-07]
[1736317042723,0.72606951,96626.0,96625.0,9.8e-07]
[1736317042923,0.72706951,96626.0,96625.0,9.8e-07]
[1736317043327,0.72606951,96626.0,96625.0,9.8e-07]
[1736317043526,0.72606951,96626.0,96625.0,0.00100098]
[1736317043729,0.72606951,96626.0,96625.0,9.8e-07]
[1736317043934,0.76058098,96626.0,96625.0,9.8e-07]
[1736317044135,0.76158098,96626.0,96625.0,9.8e-07]
[1736317045969,0.76058098,96626.0,96625.0,9.8e-07]
[1736317046397,0.76158098,96626.0,96625.0,9.8e-07]
[1736317046600,0.76058098,96626.0,96625.0,9.8e-07]
[1736317046920,0.76158098,96626.0,96625.0,9.8e-07]
[1736317048749,0.66254657,96626.0,96625.0,9.8e-07]
[1736317050621,0.68318404,96626.0,96625.0,9.8e-07]
[1736317056531,0.70436783,96626.0,96625.0,9.8e-07]
[1736317059183,0.70336783,96626.0,96625.0,9.8e-07]
[1736317059603,0.70436783,96626.0,96625.0,9.8e-07]
[1736317059807,0.80340224,96626.0,96625.0,9.8e-07]
[1736317060433,0.76340879,96626.0,96625.0,9.8e-07]
[1736317061258,0.80044882,96626.0,96625.0,9.8e-07]
[1736317062387,0.79944882,96626.0,96625.0,9.8e-07]
[1736317062803,0.80044882,96626.0,96625.0,9.8e-07]
[1736317064117,0.557017,96610.0,96609.0,8.53e-05]
[1736317064357,0.557017,96610.0,96609.0,0.00059454]
[1736317064358,3.19013281,96610.0,96609.0,0.00059454]
[1736317064616,1.01901381,96610.0,96609.0,0.00059454]
[1736317064869,3.04430081,96610.0,96609.0,0.00059454]
[1736317065734,2.94614981,96610.0,96609.0,0.00059454]
[1736317065937,2.37818681,96610.0,96609.0,0.00059454]
[1736317066447,2.47722122,96610.0,96609.0,0.00059454]
[1736317067837,3.14716522,96610.0,96609.0,0.00059454]
[1736317068261,2.64378622,96610.0,96609.0,0.00059454]
[1736317068460,2.68082625,96610.0,96609.0,0.00059454]
[1736317068665,2.67989742,96610.0,96609.0,0.00059454]
[1736317068877,2.93876184,96610.0,96609.0,0.00059454]
[1736317070876,2.97327331,96610.0,96609.0,5.4e-07]
[1736317071078,1.54918987,96610.0,96609.0,5.4e-07]
[1736317073119,1.5146784,96610.0,96609.0,5.4e-07]
[1736317073321,1.54918987,96610.0,96609.0,5.4e-07]
[1736317073526,1.41564399,96610.0,96609.0,5.4e-07]
[1736317073751,1.31564399,96610.0,96609.0,5.4e-07]
[1736317074351,1.31535743,96610.0,96609.0,5.4e-07]
[1736317079798,1.21535743,96610.0,96609.0,5.4e-07]
[1736317081815,1.21535743,96610.0,96607.0,9e-08]
[1736317081816,0.357022,96608.0,96607.0,9e-08]
[1736317082026,0.55509082,96608.0,96607.0,9e-08]
[1736317082255,0.59253569,96608.0,96607.0,9e-08]
[1736317082982,0.59353569,96608.0,96607.0,9e-08]
[1736317083787,0.49450128,96608.0,96607.0,9e-08]
[1736317084962,0.6844105,96602.0,96601.0,0.0769]
[1736317085137,2.05767091,96602.0,96601.0,0.0769]
[1736317085342,2.06078191,96602.0,96601.0,0.0769]
[1736317085516,1.49317391,96602.0,96601.0,0.0769]
[1736317085717,0.15,96601.0,96600.0,0.049]
[1736317085928,1.33086341,96601.0,96600.0,0.049]
[1736317086127,0.24903441,96601.0,96600.0,0.049]
[1736317086310,0.28619219,96601.0,96600.0,0.049]
[1736317086512,1.54473219,96601.0,96600.0,0.049]
[1736317086765,0.1,96587.0,96586.0,8.54e-05]
[1736317086977,2.23671081,96587.0,96586.0,8.54e-05]
[1736317087183,2.64165693,96587.0,96586.0,8.54e-05]
[1736317087396,2.46147593,96587.0,96586.0,8.54e-05]
[1736317087606,2.35635993,96587.0,96586.0,8.54e-05]
[1736317087806,2.4305367,96587.0,96586.0,8.54e-05]
[1736317088263,2.44082007,96587.0,96586.0,8.54e-05]
[1736317088468,2.44082007,96587.0,96586.0,4e-07]
[1736317088674,0.457101,96571.0,96570.0,3e-07]
[1736317088883,0.6845105,96555.0,96554.0,0.078]
[1736317089047,1.81730191,96555.0,96554.0,0.078]
[1736317089276,0.15,96552.0,96547.0,0.078]
[1736317089446,0.93641641,96552.0,96547.0,0.078]
[1736317089653,1.03545082,96552.0,96547.0,0.078]
[1736317089872,1.03545082,96552.0,96547.0,0.1234]
[1736317090094,1.03545082,96552.0,96551.0,0.0001361]
[1736317090730,1.0726086,96552.0,96551.0,0.0001361]
[1736317091200,1.08301876,96552.0,96551.0,0.0001361]
[1736317091770,1.04321576,96552.0,96551.0,0.0001361]
[1736317092449,0.88911335,96552.0,96551.0,0.0001361]
[1736317092715,1.13223485,96552.0,96551.0,0.0001361]
[1736317092920,1.10941585,96552.0,96551.0,0.0001361]
[1736317093157,1.11041585,96552.0,96551.0,0.0001361]
[1736317093571,1.37041585,96552.0,96551.0,0.0001361]
[1736317093780,1.30005585,96552.0,96551.0,0.0001361]
[1736317093981,1.33182826,96552.0,96551.0,0.0001361]
[1736317094407,1.23279385,96552.0,96551.0,0.0001361]
[1736317094613,0.98910307,96552.0,96551.0,0.0001361]
[1736317094821,1.00285407,96552.0,96551.0,0.0001361]
[1736317095225,0.96213507,96552.0,96551.0,0.0001361]
[1736317095371,1.00622607,96552.0,96551.0,0.0001361]
[1736317096208,0.74878566,96552.0,96551.0,0.0001361]
[1736317096814,0.95528146,96552.0,96551.0,0.0001361]
[1736317097038,1.09176116,96552.0,96551.0,0.0001361]
[1736317097385,1.09076116,96552.0,96551.0,0.0001361]
[1736317097605,0.98054516,96552.0,96551.0,0.0001361]
[1736317097808,1.09320816,96552.0,96551.0,0.0001361]
[1736317098031,1.09220816,96552.0,96551.0,0.0001361]
[1736317098212,1.33731416,96552.0,96551.0,0.0001361]
[1736317098409,0.88526536,96552.0,96551.0,0.0001361]
[1736317098597,0.88426536,96552.0,96551.0,0.0001361]
[1736317099109,1.01187136,96552.0,96551.0,0.0001361]
[1736317099903,1.01287136,96552.0,96551.0,0.0001361]
[1736317100302,0.15,96550.0,96547.0,0.12334975]
[1736317100573,0.15,96548.0,96547.0,0.12350235]
[1736317100762,1.06952141,96548.0,96547.0,0.12350235]
[1736317100966,1.09042541,96548.0,96547.0,0.12350235]
[1736317101356,0.81473641,96548.0,96547.0,0.12350235]
[1736317101563,0.45629841,96548.0,96547.0,0.12350235]
[1736317101924,0.45729841,96548.0,96547.0,0.12350235]
[1736317102654,0.47646396,96548.0,96547.0,0.12350235]
[1736317103081,0.51390928,96548.0,96547.0,0.0001526]
[1736317103491,0.83128478,96548.0,96547.0,0.0001526]
[1736317104519,0.83028478,96548.0,96547.0,0.0001526]
[1736317104921,0.83128478,96548.0,96547.0,0.0001526]
[1736317105512,0.81211923,96548.0,96547.0,0.0001526]
[1736317106841,0.60485523,96548.0,96547.0,0.0001526]
[1736317107042,3.61649823,96548.0,96547.0,0.0001526]
[1736317107248,3.51640023,96548.0,96547.0,0.0001526]
[1736317107453,2.20536523,96548.0,96547.0,0.0001526]
[1736317107661,2.30439964,96548.0,96547.0,0.0001526]
[1736317108344,1.88257964,96548.0,96547.0,0.0001526]
[1736317108512,1.24711323,96548.0,96547.0,0.0001526]
[1736317108711,1.22685823,96548.0,96547.0,0.0001526]
[1736317110585,1.2475008,96548.0,96547.0,0.0001526]
[1736317110937,1.2475008,96548.0,96534.0,0.1263]
[1736317110938,0.457178,96535.0,96534.0,0.1263]
[1736317111149,0.91943761,96535.0,96534.0,0.12645286]
[1736317111514,1.07749761,96535.0,96534.0,0.12645286]
[1736317111722,1.02579561,96535.0,96534.0,0.12645286]
[1736317112016,0.91943761,96535.0,96534.0,0.12645286]
[1736317113523,0.95759539,96535.0,96534.0,0.12645286]
[1736317114052,1.57609527,96535.0,96534.0,0.00015286]
[1736317114275,1.90475832,96535.0,96534.0,0.00015286]
[1736317114494,1.90275832,96535.0,96534.0,0.00015286]
[1736317114902,1.90375832,96535.0,96534.0,0.00015286]
[1736317116594,1.90475832,96535.0,96534.0,0.00015286]
[1736317116802,1.90275832,96535.0,96534.0,8.6e-07]
[1736317117250,0.357191,96529.0,96528.0,4e-07]
[1736317117594,0.7845925,96517.0,96516.0,0.0472]
[1736317117815,1.24694371,96517.0,96516.0,0.00015289]
[1736317118016,1.34801869,96517.0,96516.0,0.00015289]
[1736317118230,3.31203069,96517.0,96516.0,0.00015289]
[1736317118442,3.24304269,96517.0,96516.0,0.00015289]
[1736317118651,3.21203069,96517.0,96516.0,0.00015289]
[1736317118857,3.15193769,96517.0,96516.0,0.00015289]
[1736317119063,0.1,96503.0,96502.0,0.06165652]
[1736317119270,0.15,96502.0,96500.0,0.04354586]
[1736317119478,1.72071491,96501.0,96500.0,0.04354586]
[1736317119688,0.357253,96500.0,96495.0,0.00059574]
[1736317119906,0.457288,96484.0,96483.0,7e-05]
[1736317120125,0.55632241,96484.0,96483.0,1e-08]
[1736317120329,0.9416616,96484.0,96483.0,1e-08]
[1736317120554,0.207344,96458.0,96447.0,0.06548853]
[1736317120771,0.0307344,96457.0,96455.0,0.07881621]
[1736317120984,0.207348,96456.0,96454.0,0.07890161]
[1736317121613,0.207348,96456.0,96455.0,0.07881621]
[1736317121832,0.207348,96456.0,96454.0,8.54e-05]
[1736317121833,0.207344,96458.0,96457.0,0.14430474]
[1736317122039,0.207332,96464.0,96461.0,0.14430474]
[1736317122150,0.207332,96464.0,96462.0,0.0795]
[1736317122359,0.06070498,96463.0,96462.0,0.0795]
[1736317122562,0.06070498,96463.0,96462.0,0.1289]
[1736317122814,0.041465,96463.0,96462.0,0.1289]
[1736317122986,0.041465,96463.0,96461.0,0.14430474]
[1736317122987,0.207335,96462.0,96461.0,0.07881621]
[1736317123188,0.1,96460.0,96455.0,0.0001528]
[1736317123391,0.39962093,96459.0,96455.0,0.0011528]
[1736317123623,0.001,96456.0,96455.0,0.0011528]
[1736317123822,0.53514541,96456.0,96455.0,0.0011528]
[1736317124037,0.52979641,96456.0,96455.0,0.0011528]
[1736317124232,0.51840641,96456.0,96455.0,0.0011528]
[1736317124434,0.60058982,96456.0,96455.0,0.0011528]
[1736317124860,0.60058982,96456.0,96455.0,0.0001528]
[1736317124861,0.75058982,96456.0,96455.0,0.0001528]
[1736317125066,0.78903592,96456.0,96455.0,0.0001528]
[1736317125242,0.75187814,96456.0,96455.0,0.0001528]
[1736317125438,0.77106636,96456.0,96455.0,0.0001528]
[1736317125651,0.457387,96438.0,96429.0,0.0793]
[1736317125864,0.99401281,96438.0,96429.0,0.0793]
[1736317126061,1.66098603,96438.0,96429.0,0.0793]
[1736317126263,1.66098603,96438.0,96423.0,0.047]
[1736317126480,1.66098603,96438.0,96398.0,8.54e-05]
[1736317126481,1.66098603,96438.0,96416.0,8.54e-05]
[1736317126687,1.66098603,96438.0,96416.0,0.06557393]
[1736317126903,1.66069771,96438.0,96416.0,0.06557393]
[1736317127534,1.66169771,96438.0,96416.0,0.06557393]
[1736317128004,1.03341902,96438.0,96416.0,0.06557393]
[1736317128193,1.95694302,96438.0,96416.0,0.06557393]
[1736317128343,0.207432,96417.0,96416.0,8.54e-05]
[1736317128544,0.5710774,96417.0,96416.0,0.00023844]
[1736317128950,0.59026562,96417.0,96416.0,0.00023844]
[1736317129773,0.59026562,96417.0,96416.0,0.14454318]
[1736317129774,0.01918822,96417.0,96416.0,0.14454318]
[1736317130201,0.01918822,96417.0,96416.0,0.1532579]
[1736317130538,0.207404,96430.0,96427.0,0.07881621]
[1736317130539,0.22659222,96430.0,96427.0,0.07881621]
[1736317130746,0.01918822,96430.0,96429.0,0.06548853]
[1736317130962,0.207394,96435.0,96429.0,0.06548853]
[1736317131171,0.139582,96434.0,96433.0,0.06548853]
[1736317131441,0.139582,96434.0,96429.0,0.00871356]
[1736317131442,0.414794,96433.0,96429.0,0.00871356]
[1736317131649,0.414794,96433.0,96428.0,0.26930474]
[1736317131920,0.207406,96429.0,96428.0,0.26930474]
[1736317132374,0.01909593,96432.0,96431.0,0.14430474]
[1736317132579,0.207394,96435.0,96431.0,0.14430474]
[1736317132580,0.207397,96433.0,96431.0,0.14430474]
[1736317133134,0.207397,96433.0,96432.0,0.06548853]
[1736317133550,0.001,96434.0,96433.0,0.14430474]
[1736317133710,0.207394,96435.0,96434.0,0.07881621]
[1736317133905,0.207394,96435.0,96434.0,0.14430474]
[1736317134579,0.22979908,96435.0,96434.0,0.06548853]
[1736317134781,0.22979908,96435.0,96434.0,0.14430474]
[1736317135405,0.23079908,96435.0,96434.0,0.14430474]
[1736317135644,0.37397636,96440.0,96438.0,0.06548853]
[1736317135645,0.207384,96439.0,96438.0,0.06548853]
[1736317136070,0.207372,96445.0,96441.0,0.14430474]
[1736317136279,0.207372,96445.0,96442.0,0.07881621]
[1736317136689,0.207376,96443.0,96440.0,0.14430474]
[1736317136838,0.20738,96441.0,96440.0,0.06548853]
[1736317137043,0.207384,96440.0,96436.0,0.06548853]
[1736317137245,0.5709434,96440.0,96439.0,0.07881621]
[1736317137570,0.5709434,96440.0,96437.0,0.06548853]
[1736317137571,0.66997781,96440.0,96437.0,0.06548853]
[1736317138068,0.207387,96438.0,96437.0,0.06548853]
[1736317139011,0.5719434,96440.0,96439.0,0.14430474]
[1736317140464,0.5709434,96440.0,96439.0,0.06548853]
[1736317141380,0.5709434,96440.0,96436.0,0.06548853]
[1736317141531,0.207384,96440.0,96439.0,0.06548853]
[1736317141937,0.208384,96440.0,96439.0,0.06548853]
[1736317142166,0.207384,96440.0,96439.0,0.14430474]
[1736317142347,0.15,96437.0,96436.0,0.06548853]
[1736317142571,0.357406,96429.0,96428.0,0.045]
[1736317142809,0.4138859,96429.0,96428.0,0.045]
[1736317142938,0.4138859,96429.0,96428.0,0.05370366]
[1736317143151,0.7774895,96429.0,96428.0,0.045]
[1736317143364,0.7774895,96429.0,96428.0,0.05370366]
[1736317143591,0.207393,96436.0,96428.0,0.18930474]
[1736317143796,0.207393,96436.0,96435.0,0.06548853]
[1736317143994,0.207378,96442.0,96428.0,0.045]
[1736317143995,0.207378,96442.0,96439.0,0.06548853]
[1736317144361,0.22846073,96450.0,96441.0,0.14430474]
[1736317144559,0.01054189,96449.0,96448.0,0.06548853]
[1736317144772,0.5135231,96449.0,96448.0,0.06548853]
[1736317144968,0.5135231,96449.0,96448.0,0.07419237]
[1736317145170,0.207345,96458.0,96451.0,0.07881621]
[1736317145372,0.207331,96464.0,96463.0,0.06548853]
[1736317145733,0.207319,96470.0,96469.0,0.0795]
[1736317145950,0.5707683,96470.0,96469.0,0.0795]
[1736317146118,0.5707683,96470.0,96469.0,0.08819641]
[1736317146323,0.5707683,96470.0,96469.0,0.0795]
[1736317146548,0.66930693,96470.0,96469.0,0.0795]
[1736317146749,0.207333,96463.0,96462.0,0.06548853]
[1736317146962,0.207333,96463.0,96462.0,0.14430474]
[1736317147856,0.30636741,96463.0,96462.0,0.06548853]
[1736317148079,0.30636741,96463.0,96462.0,0.14430474]
[1736317148281,0.30636741,96463.0,96462.0,0.06548853]
[1736317148454,0.30636741,96463.0,96462.0,0.14430474]
[1736317148790,0.208333,96463.0,96462.0,0.14430474]
[1736317150414,0.208333,96463.0,96462.0,0.15300177]
[1736317150621,0.207333,96463.0,96462.0,0.15300177]
[1736317151457,0.208333,96463.0,96462.0,0.15300177]
[1736317151614,0.207333,96463.0,96462.0,0.15300177]
[1736317152116,0.22759427,96463.0,96462.0,0.15300177]
[1736317152751,0.22859427,96463.0,96462.0,0.15300177]
[1736317153963,0.207333,96463.0,96462.0,0.15300177]
[1736317154307,0.208333,96463.0,96462.0,0.15300177]
[1736317156051,0.31800515,96463.0,96462.0,0.15300177]
[1736317156276,0.29726515,96463.0,96462.0,0.15300177]
[1736317156998,0.208333,96463.0,96462.0,0.15300177]
[1736317157167,0.22758279,96463.0,96462.0,0.15300177]
[1736317157909,0.22758279,96463.0,96462.0,0.00869703]
[1736317158112,0.22758279,96463.0,96462.0,0.07881621]
[1736317158113,0.208333,96463.0,96462.0,0.07881621]
[1736317158332,0.208333,96463.0,96462.0,0.14430474]
[1736317158499,0.29726515,96463.0,96462.0,0.15298964]
[1736317161084,0.208333,96463.0,96462.0,0.15298964]
[1736317161509,0.208333,96463.0,96462.0,0.08750111]
[1736317161743,0.71656341,96463.0,96462.0,0.0086849]
[1736317161944,1.35711049,96463.0,96462.0,0.0086849]
[1736317162162,0.207367,96447.0,96446.0,0.2308113]
[1736317162286,0.7209035,96447.0,96446.0,0.2308113]
[1736317162525,0.15,96446.0,96445.0,0.06548853]
[1736317162729,0.24903441,96446.0,96445.0,0.06548853]
[1736317162939,0.357372,96445.0,96444.0,0.06548853]
[1736317163145,0.37663884,96445.0,96444.0,0.14430474]
[1736317163506,0.37663884,96445.0,96444.0,0.06548853]
[1736317163652,0.45762097,96445.0,96444.0,0.06548853]
[1736317163859,0.45762097,96445.0,96444.0,0.14430474]
[1736317164289,0.45862097,96445.0,96444.0,0.14430474]
[1736317164939,0.45962097,96445.0,96444.0,0.14430474]
[1736317165117,0.37863884,96445.0,96444.0,0.14430474]
[1736317165636,0.02126684,96445.0,96444.0,0.14430474]
[1736317165942,0.002,96445.0,96444.0,0.22280474]
[1736317167223,0.002,96445.0,96444.0,0.24580474]
[1736317168027,0.207353,96454.0,96445.0,0.023]
[1736317168227,0.207353,96454.0,96453.0,0.14430474]
[1736317169104,0.207353,96454.0,96453.0,0.1529858]
[1736317170318,0.24984815,96454.0,96453.0,0.1529858]
[1736317170658,0.208353,96454.0,96453.0,0.1529858]
[1736317171294,0.209353,96454.0,96453.0,0.1529858]
[1736317171491,0.207353,96454.0,96453.0,0.2020858]
[1736317171895,0.15,96463.0,96462.0,0.06548853]
[1736317172052,0.15,96463.0,96462.0,0.14238853]
[1736317174329,0.151,96463.0,96462.0,0.14238853]
[1736317174614,0.15,96463.0,96462.0,0.14238853]
[1736317174830,0.15,96462.0,96461.0,0.07881621]
[1736317175057,0.357335,96462.0,96460.0,0.06548853]
[1736317175266,0.357335,96462.0,96461.0,0.07881621]
[1736317176121,0.56467,96462.0,96459.0,0.07881621]
[1736317176334,0.45208077,96462.0,96461.0,0.07881621]
[1736317176757,0.358335,96462.0,96461.0,0.07881621]
[1736317177186,0.357335,96462.0,96461.0,0.07881621]
[1736317177598,0.357335,96462.0,96459.0,0.07881621]
[1736317177599,0.358335,96462.0,96459.0,0.07881621]
[1736317177800,0.09395941,96461.0,96459.0,0.07881621]
[1736317178035,0.207339,96460.0,96459.0,0.14430474]
[1736317179562,0.357335,96462.0,96461.0,0.14430474]
[1736317180670,0.357335,96462.0,96461.0,0.06548853]
[1736317180848,0.357335,96462.0,96461.0,0.14430474]
[1736317182432,0.42663967,96462.0,96461.0,0.14430474]
[1736317182629,0.357335,96462.0,96461.0,0.14430474]
[1736317182831,0.357335,96462.0,96461.0,0.14530474]
[1736317186302,0.357335,96462.0,96461.0,0.07981621]
[1736317187653,0.357335,96462.0,96461.0,0.14530474]
[1736317191650,0.357335,96462.0,96461.0,0.06648853]
[1736317191851,0.357335,96462.0,96461.0,0.14530474]
[1736317192637,0.357335,96462.0,96461.0,0.06648853]
[1736317192869,0.357335,96462.0,96461.0,0.14530474]
[1736317201789,0.00015239,96464.0,96463.0,0.14430474]
[1736317201940,0.00015239,96464.0,96463.0,0.16834132]
[1736317202144,0.00015239,96464.0,96463.0,0.42367428]
[1736317202351,0.00015239,96464.0,96463.0,0.30553778]
[1736317202747,0.00015239,96464.0,96463.0,0.61190519]
[1736317203150,0.00015239,96464.0,96463.0,0.40457219]
[1736317203629,0.00015239,96464.0,96463.0,0.41506346]
[1736317205325,0.00015239,96464.0,96463.0,0.6481339]
[1736317206250,0.03715401,96464.0,96463.0,0.05833304]
[1736317206447,0.03559758,96464.0,96463.0,0.12382157]
[1736317206683,0.0002887,96464.0,96463.0,0.14430474]
[1736317206936,0.36411195,96464.0,96463.0,0.01332047]
[1736317207144,0.3531219,96464.0,96463.0,0.01332047]
[1736317207280,0.3531219,96464.0,96463.0,0.01032047]
[1736317207482,0.3531219,96464.0,96462.0,0.14430474]
[1736317207483,0.357333,96463.0,96462.0,0.14430474]
[1736317209170,0.46617,96463.0,96462.0,0.14430474]
[1736317209377,0.357333,96463.0,96462.0,0.14530474]
[1736317209593,0.357333,96463.0,96462.0,0.15462532]
[1736317210203,0.357333,96463.0,96462.0,0.15562532]
[1736317211350,0.357333,96463.0,96462.0,0.15462532]
[1736317213310,0.357333,96463.0,96462.0,0.15562532]
[1736317214494,0.357333,96463.0,96462.0,0.15462532]
[1736317214696,0.357333,96463.0,96462.0,0.15562532]
[1736317215364,0.35762213,96463.0,96462.0,0.15562532]
[1736317215563,0.35762213,96463.0,96462.0,0.14530474]
[1736317215973,0.35762213,96463.0,96462.0,0.15563699]
[1736317216325,0.357333,96463.0,96462.0,0.15563699]
[1736317216732,0.207328,96466.0,96465.0,0.14430474]
[1736317216908,0.207328,96466.0,96465.0,0.23123665]
[1736317217788,0.208328,96466.0,96465.0,0.23123665]
[1736317217991,0.001,96466.0,96465.0,0.32346031]
[1736317218203,0.001,96466.0,96465.0,0.62982372]
[1736317218419,0.001,96466.0,96465.0,0.82852372]
[1736317218631,0.26,96470.0,96469.0,0.34300474]
[1736317218833,0.26,96470.0,96469.0,0.66991535]
[1736317219046,0.26,96470.0,96469.0,0.68024115]
[1736317219245,0.000171,96493.0,96492.0,0.29130474]
[1736317219451,0.00068093,96493.0,96492.0,0.29130474]
[1736317219652,0.00068093,96493.0,96492.0,0.30161652]
[1736317219871,0.00068093,96493.0,96492.0,0.32474018]
[1736317221126,0.00068093,96493.0,96492.0,0.32574018]
[1736317222565,0.00068093,96493.0,96492.0,0.32974018]
[1736317222772,0.00068093,96493.0,96492.0,0.30661652]
[1736317224246,0.00068093,96493.0,96492.0,0.18131652]
[1736317225698,0.00068093,96493.0,96492.0,0.10250031]
[1736317225902,0.0009702,96493.0,96492.0,0.07950031]
[1736317226117,0.03815386,96493.0,96492.0,0.01531178]
[1736317226327,0.18815386,96493.0,96492.0,0.005]
[1736317226539,0.73130268,96493.0,96492.0,0.005]
[1736317226742,0.73130268,96493.0,96492.0,0.004]
[1736317226950,0.63226827,96493.0,96492.0,0.004]
[1736317227737,0.207283,96486.0,96485.0,0.07881621]
[1736317227905,0.5706975,96486.0,96485.0,0.07881621]
[1736317228106,0.57057273,96486.0,96485.0,0.07881621]
[1736317229515,0.57157273,96486.0,96485.0,0.07881621]
[1736317229763,0.57057273,96486.0,96485.0,0.07881621]
[1736317230474,0.20729,96483.0,96482.0,0.07881621]
[1736317233239,0.20729,96483.0,96480.0,0.14300474]
[1736317233468,0.20729,96483.0,96482.0,0.07881621]
[1736317236165,0.20757932,96483.0,96482.0,0.07881621]
[1736317236713,0.2091533,96483.0,96482.0,0.07881621]
[1736317237123,0.20757932,96483.0,96482.0,0.07881621]
[1736317245523,0.20729,96483.0,96482.0,0.14300474]
[1736317245728,0.0103218,96486.0,96485.0,0.14300474]
[1736317245941,0.00068093,96493.0,96492.0,0.06418853]
[1736317246152,0.00068093,96493.0,96492.0,0.16600474]
[1736317246353,0.00068093,96493.0,96492.0,0.25252654]
[1736317246564,0.00068093,96493.0,96492.0,0.25149039]
[1736317247565,0.00168093,96493.0,96492.0,0.25849039]
[1736317247774,0.00168093,96493.0,96492.0,0.33324153]
[1736317247930,0.00068093,96493.0,96492.0,0.25149039]
[1736317248135,0.00068093,96493.0,96492.0,0.17267418]
[1736317248353,0.00068093,96493.0,96492.0,0.25149039]
[1736317248555,0.00068093,96493.0,96492.0,0.08750186]
[1736317248817,0.00068093,96493.0,96492.0,0.15469039]
[1736317248990,0.00068093,96493.0,96492.0,0.07587418]
[1736317249194,0.00068093,96493.0,96492.0,0.14300474]
[1736317249529,0.00068093,96493.0,96492.0,0.15178577]
[1736317249673,0.00168093,96493.0,96492.0,0.16278577]
[1736317249875,0.00068093,96493.0,96492.0,0.15478577]
[1736317250282,0.00168093,96493.0,96492.0,0.16178577]
[1736317250504,0.00168093,96493.0,96492.0,0.15178577]
[1736317250702,0.00268093,96493.0,96492.0,0.15978577]
[1736317251138,0.00068093,96493.0,96492.0,0.15178577]
[1736317251459,0.00168093,96493.0,96492.0,0.15878577]
[1736317251762,0.00168093,96493.0,96492.0,0.09459724]
[1736317251930,0.00168093,96493.0,96492.0,0.01578103]
[1736317252112,0.00168093,96493.0,96492.0,0.01878103]
[1736317252113,0.00293825,96493.0,96492.0,0.01878103]
[1736317252290,0.00322758,96493.0,96492.0,0.01]
[1736317252498,0.00322758,96493.0,96492.0,0.007]
[1736317252499,0.03697886,96493.0,96492.0,0.007]
[1736317252767,0.207288,96485.0,96482.0,0.06418853]
[1736317252978,0.207288,96485.0,96483.0,0.06418853]
[1736317253268,0.207288,96485.0,96483.0,0.00877402]
[1736317253691,0.207288,96485.0,96482.0,0.06418853]
[1736317253890,0.207288,96485.0,96484.0,0.00877392]
[1736317254196,0.207288,96485.0,96484.0,0.15177866]
[1736317255408,0.21759119,96485.0,96484.0,0.15177866]
[1736317255815,0.21759119,96485.0,96484.0,0.14300474]
[1736317256197,0.21759119,96485.0,96484.0,0.15677866]
[1736317256770,0.21759119,96485.0,96484.0,0.15777866]
[1736317258909,0.21759119,96485.0,96484.0,0.07896245]
[1736317259267,0.21759119,96485.0,96484.0,0.09359013]
[1736317259459,0.22561291,96485.0,96484.0,0.01477392]
[1736317260260,0.22561291,96485.0,96484.0,0.09359013]
[1736317260451,0.21788052,96485.0,96484.0,0.09359013]
[1736317261096,0.21759119,96485.0,96484.0,0.09359013]
[1736317261660,0.21759119,96485.0,96484.0,0.15777866]
[1736317262522,0.01030319,96485.0,96484.0,0.23827866]
[1736317262933,0.357275,96490.0,96489.0,0.07881621]
[1736317263332,0.01029917,96492.0,96491.0,0.14300474]
[1736317263596,0.207271,96492.0,96491.0,0.14300474]
[1736317263802,0.207271,96492.0,96491.0,0.15178]
[1736317264016,0.00068093,96493.0,96491.0,0.14300474]
[1736317264017,0.01091664,96493.0,96491.0,0.14300474]
[1736317264230,0.00068093,96493.0,96492.0,0.14300474]
[1736317264643,0.00068093,96493.0,96492.0,0.15177594]
[1736317265296,0.00068093,96493.0,96492.0,0.17506353]